fUSD/lending_fUSD_20240428
["ID","MTS","AMOUNT","RATE_DAILY","PERIOD"]
[323773274,1714281032307,-150.0,0.00018877,2]
[323773275,1714281032316,-2341.48294417,0.00018904,2]
[323773276,1714281032326,-150.0,0.00019026,2]
[323773277,1714281032336,-348.51,0.00019052,2]
[323773278,1714281032345,-1000.0,0.00019361,2]
[323773279,1714281032354,-150.0,0.00019466,2]
[323773280,1714281032364,-150.0,0.00019536,2]
[323773281,1714281032373,-150.0,0.00019754,2]
[323773282,1714281032382,-150.0,0.00019797,2]
[323773283,1714281032391,-150.79,0.00019804,2]
[323773284,1714281032400,-150.0,0.00019897,2]
[323773285,1714281032410,-150.0,0.00019913,2]
[323773286,1714281032420,-155.0,0.0002,2]
[323773287,1714281032429,-150.0,0.00020347,2]
[323773288,1714281032437,-150.0,0.00020384,2]
[323773289,1714281032446,-150.0,0.00020443,2]
[323773290,1714281032455,-150.0,0.00020487,2]
[323773291,1714281032464,-167.36990592,0.00020499,2]
[323773292,1714281032473,-150.0,0.000205,2]
[323773293,1714281032482,-1598.2735,0.00020511,2]
[323773294,1714281032491,-150.0,0.00020543,2]
[323773295,1714281032501,-500.0,0.00020547,2]
[323773296,1714281032510,-38618.21522861,0.00020599,2]
[323773297,1714281032523,-6461.02607614,0.00020599,2]
[323773298,1714281032536,-7065.00647956,0.00020599,2]
[323773299,1714281032552,-273.53930986,0.00020599,2]
[323773300,1714281032566,-4431.34297496,0.00020599,2]
[323773301,1714281032812,-602.58454772,0.00020599,2]
[323773315,1714281038169,-1425.94447234,0.00020599,2]
[323773316,1714281038181,-692.79472096,0.00020599,2]
[323773317,1714281038192,-1220.20775906,0.00020599,2]
[323773318,1714281038206,-406.46916604,0.00020599,2]
[323773319,1714281038217,-3182.6,0.00020599,2]
[323773320,1714281038228,-428.61941707,0.00020599,2]
[323773321,1714281038240,-315.19030927,0.00020599,2]
[323773322,1714281038252,-34876.45953841,0.00020599,2]
[323773323,1714281038261,-1000.0,0.00020599,2]
[323773324,1714281038270,-150.0,0.00020606,2]
[323773325,1714281038280,-462.0,0.00020611,2]
[323773327,1714281038288,-970.0,0.00020611,2]
[323773329,1714281038298,-2297.0,0.00020611,2]
[323773330,1714281038307,-1393.0,0.00020611,2]
[323773331,1714281038316,-1858.0,0.00020611,2]
[323773332,1714281038325,-808.0,0.00020611,2]
[323773333,1714281038335,-208.0,0.00020611,2]
[323773334,1714281038344,-437.0,0.00020611,2]
[323773335,1714281038354,-610.0,0.00020611,2]
[323773336,1714281038364,-635.035,0.00020611,2]
[323773337,1714281038373,-1475.0,0.00020611,2]
[323773338,1714281038382,-1506.186,0.00020611,2]
[323773339,1714281038391,-420.0,0.00020611,2]
[323773340,1714281038400,-443.0,0.00020611,2]
[323773341,1714281038410,-1640.0,0.00020611,2]
[323773342,1714281038420,-213.0,0.00020611,2]
[323773343,1714281038429,-1116.0,0.00020611,2]
[323773344,1714281038438,-529.398,0.00020611,2]
[323773345,1714281038448,-5895.0,0.00020611,2]
[323773346,1714281038458,-23900.319,0.00020611,2]
[323773347,1714281038467,-150.0,0.00020648,2]
[323773348,1714281038476,-3694.29,0.00020697,2]
[323773349,1714281038486,-2666.16,0.00020697,2]
[323773350,1714281038496,-2437.78,0.00020697,2]
[323773351,1714281038505,-1030.09,0.00020697,2]
[323773352,1714281038515,-2424.35,0.00020697,2]
[323773353,1714281038525,-500.0,0.00020697,2]
[323773354,1714281038535,-3014.72,0.00020697,2]
[323773355,1714281038544,-11520.81,0.00020697,2]
[323773356,1714281038553,-842.55,0.00020697,2]
[323773357,1714281038563,-3295.68,0.00020697,2]
[323773358,1714281038573,-1486.04,0.00020697,2]
[323773359,1714281038582,-2908.27,0.00020697,2]
[323773360,1714281038591,-1699.83,0.00020697,2]
[323773361,1714281038601,-11698.26,0.00020697,2]
[323773362,1714281038610,-5133.73,0.00020697,2]
[323773363,1714281038619,-4284.66,0.00020697,2]
[323773364,1714281038629,-3263.05,0.00020697,2]
[323773365,1714281038639,-5092.69,0.00020697,2]
[323773366,1714281038649,-2126.62,0.00020697,2]
[323773367,1714281038658,-9726.18,0.00020697,2]
[323773368,1714281038667,-1265.68,0.00020697,2]
[323773369,1714281038678,-12487.65,0.00020697,2]
[323773370,1714281038687,-1070.02,0.00020697,2]
[323773371,1714281038698,-500.0,0.00020697,2]
[323773372,1714281038708,-1502.13,0.00020697,2]
[323773373,1714281038718,-1620.78,0.00020697,2]
[323773374,1714281038727,-788.25,0.00020697,2]
[323773375,1714281038736,-3131.55,0.00020697,2]
[323773376,1714281038746,-1335.71,0.00020697,2]
[323773377,1714281038758,-713.1,0.00020697,2]
[323773378,1714281038767,-2440.85,0.00020697,2]
[323773379,1714281038777,-500.0,0.00020697,2]
[323773380,1714281038786,-996.45,0.00020697,2]
[323773381,1714281038795,-500.0,0.00020698,2]
[323773382,1714281038805,-163.63431531,0.00020698,2]
[323773383,1714281038814,-23378.24,0.00020698,2]
[323773384,1714281038824,-4663.58,0.00020698,2]
[323773385,1714281038834,-1579.52,0.00020698,2]
[323773386,1714281038844,-3777.25,0.00020698,2]
[323773387,1714281038854,-2985.04,0.00020698,2]
[323773388,1714281038863,-2702.08,0.00020698,2]
[323773389,1714281038872,-2742.36,0.00020698,2]
[323773390,1714281038882,-703.51,0.00020698,2]
[323773391,1714281038891,-2466.45,0.00020698,2]
[323773392,1714281038900,-1230.44,0.00020698,2]
[323773393,1714281038909,-2630.9,0.00020698,2]
[323773394,1714281038919,-14138.5,0.00020698,2]
[323773395,1714281038928,-831.52,0.00020698,2]
[323773396,1714281038937,-2173.63,0.00020698,2]
[323773397,1714281038947,-2713.21,0.00020698,2]
[323773398,1714281038957,-500.0,0.00020698,2]
[323773399,1714281038966,-2525.65,0.00020698,2]
[323773400,1714281038976,-1180.37,0.00020698,2]
[323773401,1714281038985,-7729.14,0.00020698,2]
[323773402,1714281038995,-2730.01,0.00020698,2]
[323773403,1714281039004,-2211.22,0.00020698,2]
[323773404,1714281039013,-500.0,0.00020698,2]
[323773405,1714281039022,-1044.97,0.00020698,2]
[323773406,1714281039031,-3296.67,0.00020698,2]
[323773407,1714281039040,-5091.47,0.00020698,2]
[323773408,1714281039049,-532.06,0.00020698,2]
[323773409,1714281039059,-2088.24,0.00020698,2]
[323773410,1714281039068,-500.0,0.00020698,2]
[323773411,1714281039077,-3664.3,0.00020698,2]
[323773412,1714281039087,-3380.0,0.00020698,2]
[323773413,1714281039096,-500.0,0.00020698,2]
[323773414,1714281039106,-2083.3,0.00020698,2]
[323773415,1714281039115,-5208.19,0.00020698,2]
[323773416,1714281039124,-716.84,0.00020699,2]
[323773417,1714281039134,-511.09,0.00020699,2]
[323773418,1714281039144,-842.26,0.00020699,2]
[323773419,1714281039153,-500.0,0.00020699,2]
[323773420,1714281039163,-501.70292962,0.00020699,2]
[323773421,1714281039173,-500.0,0.00020699,2]
[323773422,1714281039182,-1092.24,0.00020699,2]
[323773423,1714281039192,-500.0,0.00020699,2]
[323773424,1714281039200,-500.0,0.00020699,2]
[323773425,1714281039209,-500.0,0.00020699,2]
[323773426,1714281039218,-500.0,0.00020699,2]
[323773427,1714281039227,-500.0,0.00020699,2]
[323773428,1714281039236,-500.0,0.00020699,2]
[323773429,1714281039246,-500.0,0.00020699,2]
[323773430,1714281039256,-500.0,0.00020699,2]
[323773431,1714281039266,-500.0,0.00020699,2]
[323773432,1714281039275,-500.0,0.00020699,2]
[323773433,1714281039284,-500.0,0.00020699,2]
[323773434,1714281039293,-898.58,0.00020699,2]
[323773435,1714281039303,-500.0,0.00020699,2]
[323773436,1714281039312,-500.0,0.00020699,2]
[323773437,1714281039322,-500.0,0.00020699,2]
[323773438,1714281039332,-500.0,0.00020699,2]
[323773439,1714281039343,-2734.07,0.00020699,2]
[323773440,1714281039352,-500.0,0.00020699,2]
[323773441,1714281039361,-620.78,0.00020699,2]
[323773442,1714281039370,-500.0,0.00020699,2]
[323773443,1714281039380,-500.0,0.00020699,2]
[323773444,1714281039389,-500.0,0.00020699,2]
[323773445,1714281039398,-500.0,0.00020699,2]
[323773446,1714281039407,-541.72,0.00020699,2]
[323773447,1714281039416,-500.0,0.00020699,2]
[323773448,1714281039426,-500.0,0.00020699,2]
[323773449,1714281039436,-626.22,0.00020699,2]
[323773450,1714281039445,-500.0,0.00020699,2]
[323773451,1714281039455,-500.0,0.00020699,2]
[323773452,1714281039466,-500.0,0.00020699,2]
[323773453,1714281039475,-761.97,0.00020699,2]
[323773454,1714281039484,-500.0,0.00020699,2]
[323773455,1714281039493,-1045.2,0.00020699,2]
[323773456,1714281039502,-451.2342623,0.00020699,2]
[323773457,1714281039511,-500.0,0.00020699,2]
[323773458,1714281039521,-500.0,0.00020699,2]
[323773459,1714281039532,-1843.96,0.00020699,2]
[323773460,1714281039541,-500.0,0.00020699,2]
[323773461,1714281039550,-500.0,0.00020699,2]
[323773462,1714281039559,-756.67,0.00020699,2]
[323773463,1714281039569,-500.0,0.00020699,2]
[323773464,1714281039579,-500.0,0.00020699,2]
[323773465,1714281039588,-500.0,0.00020699,2]
[323773466,1714281039597,-2322.97,0.00020699,2]
[323773467,1714281039607,-1388.74,0.00020699,2]
[323773468,1714281039616,-500.0,0.00020699,2]
[323773469,1714281039626,-500.0,0.00020699,2]
[323773470,1714281039640,-297.97049873,0.00020699,2]
[323773471,1714281039654,-500.0,0.00020699,2]
[323773472,1714281039665,-500.0,0.00020699,2]
[323773473,1714281039683,-153.3921509,0.00020699,2]
[323773474,1714281039694,-564.65,0.00020699,2]
[323773475,1714281039704,-500.0,0.00020699,2]
[323773476,1714281039909,-1636.88,0.00020699,2]
[323773477,1714281039917,-500.0,0.00020699,2]
[323773478,1714281039926,-2176.24,0.00020699,2]
[323773479,1714281039935,-809.47,0.00020699,2]
[323773480,1714281039943,-500.0,0.00020699,2]
[323773481,1714281039952,-500.0,0.00020699,2]
[323773482,1714281039961,-500.0,0.00020699,2]
[323773483,1714281039970,-500.0,0.00020699,2]
[323773484,1714281039979,-500.0,0.00020699,2]
[323773485,1714281039989,-500.0,0.00020699,2]
[323773486,1714281039998,-500.0,0.00020699,2]
[323773487,1714281040007,-500.0,0.00020699,2]
[323773488,1714281040017,-500.0,0.00020699,2]
[323773489,1714281040026,-2367.54,0.00020699,2]
[323773490,1714281040036,-500.0,0.00020699,2]
[323773491,1714281040045,-500.0,0.00020699,2]
[323773492,1714281040054,-751.9,0.00020699,2]
[323773493,1714281040063,-500.0,0.00020699,2]
[323773494,1714281040073,-500.0,0.00020699,2]
[323773495,1714281040082,-500.0,0.00020699,2]
[323773496,1714281040092,-500.0,0.00020699,2]
[323773497,1714281040101,-1022.87,0.00020699,2]
[323773498,1714281040110,-870.0,0.00020699,2]
[323773499,1714281040120,-1600.39,0.00020699,2]
[323773500,1714281040129,-500.0,0.00020699,2]
[323773501,1714281040138,-565.55,0.00020699,2]
[323773502,1714281040147,-500.0,0.00020699,2]
[323773503,1714281040156,-267.80364943,0.00020699,2]
[323773504,1714281040165,-500.0,0.00020699,2]
[323773505,1714281040174,-500.0,0.00020699,2]
[323773506,1714281040183,-1783.25,0.00020699,2]
[323773507,1714281040193,-500.0,0.00020699,2]
[323773508,1714281040202,-500.0,0.00020699,2]
[323773509,1714281040212,-753.09,0.00020699,2]
[323773510,1714281040221,-500.0,0.00020699,2]
[323773511,1714281040230,-500.0,0.00020699,2]
[323773512,1714281040239,-690.85,0.00020699,2]
[323773513,1714281040248,-501.75430383,0.00020699,2]
[323773514,1714281040258,-1167.34,0.00020699,2]
[323773515,1714281040267,-500.0,0.00020699,2]
[323773516,1714281040277,-500.0,0.00020699,2]
[323773517,1714281040287,-500.0,0.00020699,2]
[323773518,1714281040296,-500.0,0.00020699,2]
[323773519,1714281040306,-1354.26,0.00020699,2]
[323773520,1714281040316,-601.88,0.00020699,2]
[323773521,1714281040326,-500.0,0.00020699,2]
[323773522,1714281040335,-500.0,0.00020699,2]
[323773523,1714281040345,-958.62,0.00020699,2]
[323773524,1714281040355,-500.0,0.00020699,2]
[323773525,1714281040366,-500.0,0.00020699,2]
[323773526,1714281040375,-500.0,0.00020699,2]
[323773527,1714281040385,-500.0,0.00020699,2]
[323773528,1714281040395,-500.0,0.00020699,2]
[323773529,1714281040406,-500.0,0.00020699,2]
[323773530,1714281040415,-500.0,0.00020699,2]
[323773531,1714281040425,-500.0,0.00020699,2]
[323773532,1714281040434,-506.02,0.00020699,2]
[323773533,1714281040444,-500.0,0.00020699,2]
[323773534,1714281040453,-712.5,0.00020699,2]
[323773535,1714281040463,-500.0,0.00020699,2]
[323773536,1714281040472,-500.0,0.00020699,2]
[323773537,1714281040482,-501.56063748,0.00020699,2]
[323773538,1714281040490,-500.0,0.00020699,2]
[323773539,1714281040499,-500.0,0.00020699,2]
[323773540,1714281040509,-502.05183797,0.00020699,2]
[323773541,1714281040517,-1226.18,0.00020699,2]
[323773542,1714281040526,-500.0,0.00020699,2]
[323773543,1714281040535,-501.15373088,0.00020699,2]
[323773544,1714281040544,-2384.98,0.00020699,2]
[323773545,1714281040554,-500.0,0.00020699,2]
[323773546,1714281040563,-500.0,0.00020699,2]
[323773547,1714281040572,-500.0,0.00020699,2]
[323773548,1714281040581,-500.0,0.00020699,2]
[323773549,1714281040591,-501.36785672,0.00020699,2]
[323773550,1714281040601,-1119.63,0.00020699,2]
[323773551,1714281040610,-735.63,0.00020699,2]
[323773552,1714281040619,-500.0,0.00020699,2]
[323773553,1714281040629,-500.0,0.00020699,2]
[323773554,1714281040638,-500.0,0.00020699,2]
[323773555,1714281040648,-181.45282161,0.00020699,2]
[323773556,1714281040657,-500.0,0.00020699,2]
[323773557,1714281040666,-676.72,0.00020699,2]
[323773558,1714281040675,-638.07786141,0.00020699,2]
[323773559,1714281040684,-500.0,0.00020699,2]
[323773560,1714281040694,-777.14,0.00020699,2]
[323773561,1714281040705,-500.0,0.00020699,2]
[323773562,1714281040714,-500.0,0.00020699,2]
[323773563,1714281040722,-1163.63,0.00020699,2]
[323773564,1714281040731,-619.22,0.00020699,2]
[323773565,1714281040741,-554.15,0.00020699,2]
[323773566,1714281040750,-500.0,0.00020699,2]
[323773567,1714281040762,-555.67867414,0.00020699,2]
[323773568,1714281040771,-1156.62,0.00020699,2]
[323773569,1714281040781,-500.0,0.00020699,2]
[323773570,1714281040790,-500.0,0.00020699,2]
[323773571,1714281040801,-500.0,0.00020699,2]
[323773572,1714281040811,-638.75,0.00020699,2]
[323773573,1714281040821,-500.0,0.00020699,2]
[323773574,1714281040833,-500.0,0.00020699,2]
[323773575,1714281040843,-500.0,0.00020699,2]
[323773576,1714281040853,-501.05271653,0.00020699,2]
[323773577,1714281040862,-608.62,0.00020699,2]
[323773578,1714281040872,-501.45556483,0.00020699,2]
[323773579,1714281040881,-500.0,0.00020699,2]
[323773580,1714281040890,-584.3,0.00020699,2]
[323773581,1714281040899,-500.0,0.00020699,2]
[323773582,1714281040909,-506.81879911,0.00020699,2]
[323773583,1714281040919,-500.0,0.00020699,2]
[323773584,1714281040928,-1858.43,0.00020699,2]
[323773585,1714281040937,-500.0,0.00020699,2]
[323773586,1714281040946,-500.0,0.00020699,2]
[323773587,1714281040955,-500.0,0.00020699,2]
[323773588,1714281040964,-500.0,0.00020699,2]
[323773589,1714281040973,-500.0,0.00020699,2]
[323773590,1714281040982,-500.0,0.00020699,2]
[323773591,1714281040991,-500.0,0.00020699,2]
[323773592,1714281041001,-500.0,0.00020699,2]
[323773593,1714281041010,-500.0,0.00020699,2]
[323773594,1714281041025,-500.0,0.00020699,2]
[323773595,1714281041047,-593.67,0.00020699,2]
[323773596,1714281041063,-1019.57,0.00020699,2]
[323773597,1714281041082,-500.79038548,0.00020699,2]
[323773598,1714281041099,-500.0,0.00020699,2]
[323773599,1714281041116,-500.0,0.00020699,2]
[323773600,1714281041133,-500.0,0.00020699,2]
[323773601,1714281041150,-563.15,0.00020699,2]
[323773602,1714281041171,-500.0,0.00020699,2]
[323773603,1714281041190,-546.59,0.00020699,2]
[323773604,1714281041206,-539.63,0.00020699,2]
[323773605,1714281041225,-500.0,0.00020699,2]
[323773606,1714281041243,-546.02289129,0.00020699,2]
[323773607,1714281041256,-500.0,0.00020699,2]
[323773608,1714281041272,-1100.49,0.00020699,2]
[323773609,1714281041289,-511.52963465,0.00020699,2]
[323773610,1714281041302,-569.75,0.00020699,2]
[323773611,1714281041317,-1400.5,0.00020699,2]
[323773612,1714281041332,-501.74010934,0.00020699,2]
[323773613,1714281041353,-991.51,0.00020699,2]
[323773614,1714281041369,-500.0,0.00020699,2]
[323773615,1714281041383,-500.0,0.00020699,2]
[323773616,1714281041400,-500.0,0.00020699,2]
[323773617,1714281041415,-606.03,0.00020699,2]
[323773618,1714281041430,-500.0,0.00020699,2]
[323773619,1714281041445,-500.0,0.00020699,2]
[323773620,1714281041460,-500.0,0.00020699,2]
[323773621,1714281041474,-500.0,0.00020699,2]
[323773622,1714281041489,-500.0,0.00020699,2]
[323773623,1714281041504,-1455.02,0.00020699,2]
[323773624,1714281041519,-500.0,0.00020699,2]
[323773625,1714281041534,-500.0,0.00020699,2]
[323773626,1714281041548,-161.7176541,0.00020699,2]
[323773627,1714281041563,-500.0,0.00020699,2]
[323773628,1714281041577,-500.0,0.00020699,2]
[323773629,1714281041592,-612.41,0.00020699,2]
[323773630,1714281041607,-501.43270143,0.00020699,2]
[323773632,1714281041623,-500.0,0.00020699,2]
[323773634,1714281041637,-962.94,0.00020699,2]
[323773635,1714281041653,-500.0,0.00020699,2]
[323773636,1714281041667,-514.86,0.00020699,2]
[323773637,1714281041682,-500.0,0.00020699,2]
[323773638,1714281041696,-630.61916247,0.00020699,2]
[323773639,1714281041713,-500.0,0.00020699,2]
[323773640,1714281041728,-669.94,0.00020699,2]
[323773641,1714281041745,-512.71057705,0.00020699,2]
[323773642,1714281041761,-505.30509845,0.00020699,2]
[323773643,1714281041776,-551.98,0.00020699,2]
[323773644,1714281041792,-500.0,0.00020699,2]
[323773645,1714281041808,-501.39567745,0.00020699,2]
[323773646,1714281041823,-500.0,0.00020699,2]
[323773647,1714281041838,-1619.58,0.00020699,2]
[323773648,1714281041854,-500.0,0.00020699,2]
[323773649,1714281041869,-500.0,0.00020699,2]
[323773650,1714281041884,-500.0,0.00020699,2]
[323773651,1714281041900,-500.0,0.00020699,2]
[323773652,1714281041916,-500.0,0.00020699,2]
[323773653,1714281041931,-575.52,0.00020699,2]
[323773654,1714281041946,-500.0,0.00020699,2]
[323773655,1714281041961,-656.21,0.00020699,2]
[323773656,1714281041976,-500.0,0.00020699,2]
[323773657,1714281041992,-922.73,0.00020699,2]
[323773658,1714281042007,-500.0,0.00020699,2]
[323773659,1714281042022,-500.0,0.00020699,2]
[323773660,1714281042036,-504.00165564,0.00020699,2]
[323773661,1714281042051,-500.0,0.00020699,2]
[323773662,1714281042066,-500.0,0.00020699,2]
[323773663,1714281042082,-500.0,0.00020699,2]
[323773664,1714281042098,-500.0,0.00020699,2]
[323773665,1714281042115,-500.0,0.00020699,2]
[323773666,1714281042131,-500.0,0.00020699,2]
[323773667,1714281042147,-1530.99,0.00020699,2]
[323773668,1714281042162,-500.0,0.00020699,2]
[323773669,1714281042177,-500.0,0.00020699,2]
[323773670,1714281042193,-1157.26,0.00020699,2]
[323773671,1714281042207,-500.0,0.00020699,2]
[323773672,1714281042223,-500.0,0.00020699,2]
[323773673,1714281042237,-189.23,0.00020699,2]
[323773674,1714281042253,-589.11,0.00020699,2]
[323773675,1714281042269,-500.0,0.00020699,2]
[323773676,1714281042284,-500.0,0.00020699,2]
[323773677,1714281042301,-821.16,0.00020699,2]
[323773678,1714281042316,-500.0,0.00020699,2]
[323773679,1714281042331,-939.05,0.00020699,2]
[323773680,1714281042347,-500.0,0.00020699,2]
[323773681,1714281042363,-504.06142925,0.00020699,2]
[323773682,1714281042379,-500.0,0.00020699,2]
[323773683,1714281042394,-505.50688429,0.00020699,2]
[323773684,1714281042410,-500.0,0.00020699,2]
[323773685,1714281042428,-378.94691198,0.00020699,2]
[323773686,1714281042443,-1894.11,0.00020699,2]
[323773687,1714281042459,-1885.91,0.00020699,2]
[323773688,1714281042474,-500.0,0.00020699,2]
[323773689,1714281042490,-532.3,0.00020699,2]
[323773690,1714281042504,-1180.9,0.00020699,2]
[323773691,1714281042520,-500.0,0.00020699,2]
[323773692,1714281042535,-500.0,0.00020699,2]
[323773693,1714281042550,-500.0,0.00020699,2]
[323773694,1714281042565,-700.21,0.00020699,2]
[323773695,1714281042580,-1732.38,0.00020699,2]
[323773696,1714281042594,-500.0,0.00020699,2]
[323773697,1714281042609,-500.0,0.00020699,2]
[323773698,1714281042624,-500.0,0.00020699,2]
[323773700,1714281042640,-500.0,0.00020699,2]
[323773702,1714281042652,-500.0,0.00020699,2]
[323773704,1714281042661,-966.99,0.00020699,2]
[323773706,1714281042671,-500.0,0.00020699,2]
[323773707,1714281042681,-500.0,0.00020699,2]
[323773708,1714281042690,-500.0,0.00020699,2]
[323773709,1714281042700,-500.0,0.00020699,2]
[323773710,1714281042709,-500.0,0.00020699,2]
[323773711,1714281042718,-534.42,0.00020699,2]
[323773713,1714281042727,-500.0,0.00020699,2]
[323773715,1714281042737,-1172.93,0.00020699,2]
[323773728,1714281043091,-500.0,0.00020699,2]
[323773729,1714281043126,-500.0,0.00020699,2]
[323773730,1714281043137,-500.0,0.00020699,2]
[323773731,1714281043146,-500.0,0.00020699,2]
[323773732,1714281043156,-500.0,0.00020699,2]
[323773733,1714281043168,-841.12,0.00020699,2]
[323773734,1714281043178,-637.69956529,0.00020699,2]
[323773735,1714281043188,-500.0,0.00020699,2]
[323773736,1714281043199,-500.0,0.00020699,2]
[323773737,1714281043209,-500.0,0.00020699,2]
[323773738,1714281043218,-500.0,0.00020699,2]
[323773739,1714281043227,-500.0,0.00020699,2]
[323773740,1714281043236,-226.46365035,0.00020699,2]
[323773741,1714281043245,-500.0,0.00020699,2]
[323773742,1714281043254,-500.0,0.00020699,2]
[323773743,1714281043264,-501.93799272,0.00020699,2]
[323773744,1714281043274,-1596.36,0.00020699,2]
[323773745,1714281043285,-823.6,0.00020699,2]
[323773746,1714281043297,-712.28,0.00020699,2]
[323773747,1714281043306,-500.0,0.00020699,2]
[323773748,1714281043315,-500.0,0.00020699,2]
[323773749,1714281043325,-300.2751811,0.00020699,2]
[323773750,1714281043334,-514.08,0.00020699,2]
[323773751,1714281043343,-500.0,0.00020699,2]
[323773752,1714281043352,-553.08,0.00020699,2]
[323773753,1714281043361,-511.61778121,0.00020699,2]
[323773754,1714281043370,-503.22624238,0.00020699,2]
[323773755,1714281043379,-500.0,0.00020699,2]
[323773756,1714281043388,-500.0,0.00020699,2]
[323773757,1714281043398,-889.86,0.00020699,2]
[323773758,1714281043407,-500.0,0.00020699,2]
[323773759,1714281043417,-500.0,0.00020699,2]
[323773760,1714281043427,-500.0,0.00020699,2]
[323773761,1714281043437,-500.0,0.00020699,2]
[323773762,1714281043448,-564.23,0.00020699,2]
[323773763,1714281043457,-1127.86,0.00020699,2]
[323773764,1714281043468,-500.0,0.00020699,2]
[323773765,1714281043479,-500.0,0.00020699,2]
[323773767,1714281043490,-676.37,0.00020699,2]
[323773770,1714281043501,-500.0,0.00020699,2]
[323773771,1714281043512,-502.16269679,0.00020699,2]
[323773772,1714281043522,-1575.24,0.00020699,2]
[323773773,1714281043531,-852.31,0.00020699,2]
[323773774,1714281043541,-1514.09,0.00020699,2]
[323773775,1714281043551,-500.0,0.00020699,2]
[323773776,1714281043561,-670.8,0.00020699,2]
[323773777,1714281043573,-600.51,0.00020699,2]
[323773778,1714281043583,-548.07,0.00020699,2]
[323773779,1714281043592,-500.0,0.00020699,2]
[323773780,1714281043601,-500.0,0.00020699,2]
[323773781,1714281043610,-503.48116214,0.00020699,2]
[323773782,1714281043621,-490.00384326,0.00020699,2]
[323773783,1714281043631,-500.0,0.00020699,2]
[323773784,1714281043640,-1624.39,0.00020699,2]
[323773785,1714281043650,-535.33725755,0.00020699,2]
[323773786,1714281043659,-501.43197768,0.00020699,2]
[323773787,1714281043669,-501.55108675,0.00020699,2]
[323773788,1714281043679,-3118.99,0.00020699,2]
[323773789,1714281043689,-500.0,0.00020699,2]
[323773790,1714281043697,-500.0,0.00020699,2]
[323773791,1714281043707,-1030.24,0.00020699,2]
[323773792,1714281043716,-1540.28,0.00020699,2]
[323773793,1714281043725,-500.0,0.00020699,2]
[323773794,1714281043735,-500.0,0.00020699,2]
[323773795,1714281043744,-557.33,0.00020699,2]
[323773796,1714281043758,-510.1,0.00020699,2]
[323773797,1714281043768,-1772.05,0.00020699,2]
[323773798,1714281043778,-500.0,0.00020699,2]
[323773799,1714281043789,-518.55544922,0.00020699,2]
[323773800,1714281043799,-500.0,0.00020699,2]
[323773801,1714281043807,-500.0,0.00020699,2]
[323773802,1714281043818,-500.0,0.00020699,2]
[323773803,1714281043828,-4498.33,0.00020699,2]
[323773804,1714281043838,-500.0,0.00020699,2]
[323773805,1714281043849,-500.0,0.00020699,2]
[323773806,1714281043858,-500.0,0.00020699,2]
[323773807,1714281043867,-500.0,0.00020699,2]
[323773808,1714281043878,-500.0,0.00020699,2]
[323773809,1714281043887,-500.0,0.00020699,2]
[323773810,1714281043896,-500.0,0.00020699,2]
[323773811,1714281043908,-1906.39,0.00020699,2]